bitfinex/quotes_ETHUSD_20260226
["timestamp","ask_amount","ask_price","bid_price","bid_amount"]
[1772132595101,5.38122,2021.7,2020.4,0.80582005]
[1772132595299,3.04427828,2021.8,2020.4,0.80582005]
[1772132595505,16.144675,2021.7,2020.4,0.80582005]
[1772132595690,11.923026,2021.7,2020.4,0.80582005]
[1772132595891,4.9097,2021.5,2020.4,0.80582005]
[1772132596087,1.534,2021.4,2020.4,2.04319466]
[1772132596292,1.534,2021.4,2020.4,2.04319378]
[1772132597010,1.534,2021.4,2020.5,0.80732005]
[1772132598016,3.434188,2021.1,2020.1,0.80732005]
[1772132598219,3.434188,2021.1,2019.8,1.23772065]
[1772132598391,3.434188,2021.1,2019.7,2.04508466]
[1772132598898,33.44309349,2021.0,2019.8,0.80732005]
[1772132599100,25.839901,2020.9,2019.4,2.04526738]
[1772132599306,20.177476,2020.7,2019.5,0.44099912]
[1772132599616,9.068996,2020.7,2019.6,0.44099912]
[1772132599795,9.068996,2020.7,2019.7,0.44099912]
[1772132599992,1.23725626,2020.6,2019.8,0.44099912]
[1772132600198,1.23725626,2020.6,2019.9,0.42753441]
[1772132600504,1.23725626,2020.6,2019.6,1.23781829]
[1772132600505,1.23725626,2020.6,2019.6,2.04513834]
[1772132600909,1.23725626,2020.6,2019.7,0.80732005]
[1772132602123,4.94902504,2020.7,2019.7,0.80732005]
[1772132602415,5.42662745,2020.7,2019.3,1.23801525]
[1772132602615,21.940235,2020.6,2019.3,1.23801525]
[1772132603206,22.41783741,2020.6,2019.2,2.04445271]
[1772132603407,30.0,2020.5,2019.2,2.04445271]
[1772132603791,30.0,2020.4,2019.2,2.04445271]
[1772132603994,1.23750123,2020.2,2019.2,2.04445271]
[1772132604520,1.23750123,2020.2,2019.2,2.04445896]
[1772132604689,6.925305,2019.8,2018.5,2.0639301]
[1772132604894,1.528,2019.7,2018.6,0.82540823]
[1772132605731,20.808909,2019.6,2018.6,0.82540823]
[1772132606118,1.23793018,2019.5,2018.6,0.82540823]
[1772132606793,1.526,2019.4,2018.6,0.82540823]
[1772132607207,1.23793018,2019.5,2018.6,0.82540823]
[1772132607418,1.525,2019.3,2018.6,0.82540823]
[1772132608230,1.2381141,2019.2,2018.6,0.82540823]
[1772132608592,1.524,2019.1,2018.6,0.82540823]
[1772132609548,1.2381141,2019.2,2018.6,0.82540823]
[1772132609764,1.524,2019.1,2018.6,0.82540823]
[1772132609911,1.524,2019.1,2018.2,0.82540823]
[1772132610248,1.23823675,2019.0,2018.2,0.82540823]
[1772132610809,1.23823675,2019.0,2018.0,0.001]
[1772132611028,1.23823675,2019.0,2018.1,0.82540823]
[1772132611214,1.521,2018.9,2018.1,0.82540823]
[1772132611407,1.23823675,2019.0,2018.1,0.82540823]
[1772132611630,1.52,2018.9,2018.1,0.82540823]
[1772132611837,1.23823675,2019.0,2018.1,0.82540823]
[1772132612033,1.52,2018.9,2018.1,0.82540823]
[1772132612341,2.75830206,2018.9,2018.3,0.82540823]
[1772132612648,2.75830206,2018.9,2018.4,0.44894178]
[1772132612850,2.75830206,2018.9,2018.5,0.44994178]
[1772132613141,2.75830206,2018.9,2018.0,0.82690823]
[1772132613342,2.75830206,2018.9,2018.1,0.44914397]
[1772132613543,2.75830206,2018.9,2018.2,0.44914397]
[1772132613736,2.75830206,2018.9,2018.0,0.82690823]
[1772132613921,2.75830206,2018.9,2018.1,0.44956467]
[1772132614121,2.75830206,2018.9,2018.2,1.2754729]
[1772132614319,2.75830206,2018.9,2018.2,0.82590823]
[1772132614528,1.518,2018.8,2018.2,2.06463562]
[1772132614752,1.23830206,2018.9,2018.3,0.4492387]
[1772132614955,1.518,2018.7,2018.2,0.82590823]
[1772132616158,1.23848211,2018.6,2018.2,0.82590823]
[1772132616863,1.23848211,2018.6,2018.2,2.02590823]
[1772132617944,1.23848211,2018.6,2018.2,1.2]
[1772132619159,1.23848211,2018.6,2018.0,0.001]
[1772132620500,1.23848211,2018.6,2017.8,0.80805951]
[1772132620832,1.23848211,2018.6,2017.9,0.82368186]
[1772132621157,1.518,2018.5,2017.9,0.82368186]
[1772132622342,1.23860483,2018.4,2017.9,0.82368186]
[1772132622962,4.95347619,2018.8,2018.0,0.82368186]
[1772132623161,1.515,2018.6,2018.0,0.82368186]
[1772132624365,1.515,2018.6,2018.2,0.82368186]
[1772132624564,2.75349685,2018.6,2018.2,0.82368186]
[1772132624764,4.95347619,2018.8,2018.2,0.82368186]
[1772132624765,1.514,2018.8,2018.3,0.82368186]
[1772132625952,4.95268857,2019.2,2018.3,0.82368186]
[1772132626279,4.95268857,2019.2,2018.4,0.44893682]
[1772132626280,1.512,2019.1,2018.4,0.44893682]
[1772132626449,1.512,2019.1,2018.3,0.82368186]
[1772132626653,1.23823675,2019.0,2018.4,0.44887677]
[1772132626863,1.23823675,2019.0,2018.3,0.82468186]
[1772132627065,0.002,2018.7,2018.3,0.82468186]
[1772132627264,1.513,2018.7,2018.4,0.44946056]
[1772132627463,1.513,2018.7,2018.3,0.82468186]
[1772132627678,1.513,2018.7,2018.4,1.2731808]
[1772132627882,1.513,2018.7,2018.4,0.82368186]
[1772132628374,1.513,2018.7,2018.1,0.82368186]
[1772132628570,1.513,2018.7,2018.3,0.82368186]
[1772132628571,0.002,2018.7,2018.3,0.82368186]
[1772132628751,0.002,2018.7,2018.4,0.44997258]
[1772132628961,1.511,2018.9,2018.5,0.82468186]
[1772132629161,2.28919394,2018.9,2018.5,0.82368186]
[1772132632069,0.002,2019.2,2018.6,0.82368186]
[1772132632270,0.002,2019.2,2018.8,0.82368186]
[1772132632698,0.002,2019.2,2019.0,0.82368186]
[1772132633374,0.002,2019.2,2018.9,1.23829808]
[1772132633375,11.778,2019.7,2019.2,0.82368186]
[1772132633594,2.74582303,2019.7,2019.2,0.82368186]
[1772132633798,2.74582303,2019.7,2018.6,0.82368186]
[1772132633799,19.062285,2019.6,2018.6,0.82368186]
[1772132633999,19.062285,2019.6,2018.7,0.45151604]
[1772132634208,2.45830732,2019.5,2018.6,0.82468186]
[1772132634372,5.19437731,2019.7,2018.6,0.82468186]
[1772132634577,24.157637,2019.6,2018.6,0.82468186]
[1772132634784,1.23793018,2019.5,2018.6,0.82468186]
[1772132635681,1.23793018,2019.5,2018.7,0.82468186]
[1772132635880,1.507,2019.4,2018.7,0.82468186]
[1772132636586,1.507,2019.4,2018.7,0.82368186]
[1772132636784,1.23805279,2019.3,2018.7,0.82368186]
[1772132637313,1.23805279,2019.3,2018.7,0.82468186]
[1772132639082,1.23805279,2019.3,2018.7,0.82368186]
[1772132639786,1.23805279,2019.3,2018.8,0.001]
[1772132639990,1.23805279,2019.3,2018.7,0.82368186]
[1772132640189,1.23805279,2019.3,2018.7,2.06209603]
[1772132640394,1.23805279,2019.3,2018.7,0.82368186]
[1772132640789,1.23805279,2019.3,2018.8,0.001]
[1772132641883,0.002,2019.1,2018.8,0.001]
[1772132642221,1.507,2019.0,2018.8,0.001]
[1772132642379,1.507,2019.0,2018.6,0.001]
[1772132643067,2.45663266,2018.8,2018.4,0.001]
[1772132643213,2.45663266,2018.8,2018.0,0.001]
[1772132643214,2.45663266,2018.8,2018.0,0.82468186]
[1772132643823,2.45663266,2018.3,2017.7,0.82368186]
[1772132644022,2.09955216,2018.7,2017.7,0.82368186]
[1772132644023,1.505,2018.2,2017.8,0.82368186]
[1772132644713,0.65313572,2018.2,2017.8,0.82368186]
[1772132645095,1.505,2018.5,2017.8,0.82368186]
[1772132645300,2.45863266,2019.1,2017.8,0.82368186]
[1772132645491,1.505,2018.9,2018.2,0.82368186]
[1772132645803,1.505,2018.9,2018.4,0.82368186]
[1772132646185,1.39998619,2018.9,2018.4,0.82368186]
[1772132646518,1.504,2020.0,2018.8,0.82368186]
[1772132646719,0.002,2019.9,2019.1,0.82368186]
[1772132646929,0.002,2019.9,2019.0,2.45663266]
[1772132646930,0.002,2019.9,2019.2,1.27397474]
[1772132647098,0.002,2019.9,2019.2,0.82368186]
[1772132647605,0.002,2019.9,2019.3,1.23805279]
[1772132647918,0.002,2019.9,2019.3,2.06173465]
[1772132648832,7.40663761,2020.4,2019.3,2.06173465]
[1772132648833,1.504,2020.8,2019.7,0.82368186]
[1772132649131,0.005,2020.5,2019.8,0.82368186]
[1772132649295,0.005,2020.5,2020.0,0.82368186]
[1772132649296,0.003,2020.5,2020.0,0.82368186]
[1772132649503,0.003,2020.5,2020.2,0.82368186]
[1772132649725,6.45136323,2021.3,2020.3,2.06791567]
[1772132650027,6.45136323,2021.3,2020.3,0.83047569]
[1772132650028,2.45663266,2021.2,2020.3,0.83047569]
[1772132650323,2.45863266,2021.2,2020.1,1.23750955]
[1772132650547,2.45863266,2021.2,2020.0,5.78082612]
[1772132650548,2.45663266,2021.0,2020.0,2.06805281]
[1772132650921,2.45663266,2020.8,2020.0,0.83047569]
[1772132651095,2.45663266,2020.6,2019.7,1.23777743]
[1772132651295,1.503,2020.7,2019.7,1.23777743]
[1772132651296,0.002,2020.7,2020.0,0.83047569]
[1772132651612,8.90699589,2021.3,2020.2,0.83047569]
[1772132651801,0.002,2021.2,2020.3,1.23743998]
[1772132653015,0.002,2021.1,2020.2,2.0679283]
[1772132653322,0.002,2021.0,2020.3,0.83047569]
[1772132653525,0.002,2021.2,2020.3,0.83047569]
[1772132653826,0.002,2021.2,2020.4,1.23737873]
[1772132654429,0.002,2021.1,2020.4,1.23737873]
[1772132654925,0.002,2021.0,2020.3,2.06788145]
[1772132655109,0.002,2021.2,2020.3,1.23740576]
[1772132655309,0.002,2021.2,2020.2,1.23747518]
[1772132655506,0.002,2021.1,2020.2,1.23747518]
[1772132656328,0.002,2020.9,2020.2,1.23747518]
[1772132657029,0.002,2020.8,2020.1,1.23754046]
[1772132657614,0.002,2021.4,2020.1,1.23754046]
[1772132657941,2.62557728,2026.6,2020.8,0.002]
[1772132658250,2.62557728,2026.6,2024.8,0.2582594]
[1772132658736,12.08265687,2030.5,2024.8,0.2582594]
[1772132658737,2.4299833,2031.4,2029.9,2.70854852]
[1772132658967,0.73947471,2032.8,2030.0,2.78641563]
[1772132658968,2.4359833,2031.9,2030.0,2.78641563]
[1772132659237,2.4359833,2031.9,2031.0,19.694481]
[1772132659238,3.22250667,2031.9,2031.0,19.694481]
[1772132659400,8.75087337,2031.8,2031.0,16.83690399]
[1772132659602,3.22250667,2031.6,2030.5,2.19317734]
[1772132659836,0.79252337,2031.6,2029.6,3.2895975]
[1772132660046,2.62557728,2031.7,2030.3,2.19130999]
[1772132660047,0.79252337,2031.4,2030.3,2.19130999]
[1772132660346,1.23289127,2032.7,2031.0,2.42771319]
[1772132660347,0.003,2032.7,2031.0,2.42771319]
[1772132660501,1.47477048,2034.3,2030.6,3.25818888]
[1772132660502,2.42771319,2034.7,2032.1,0.83047569]
[1772132660704,1.22850122,2035.0,2032.5,0.83047569]
[1772132661007,1.22850122,2035.0,2032.2,2.70854852]
[1772132661008,2.42771319,2034.4,2032.2,2.70854852]
[1772132661204,0.79252337,2035.4,2032.6,0.83047569]
[1772132661444,2.428539,2036.1,2033.4,2.42771319]
[1772132661615,0.79252337,2035.1,2033.0,2.42771319]
[1772132661819,2.148489,2035.0,2033.5,2.42771319]
[1772132662022,0.79252337,2035.1,2033.9,2.42771319]
[1772132662246,0.79252337,2034.9,2033.7,2.42771319]
[1772132662543,30.0,2034.6,2032.4,2.42771319]
[1772132662745,4.91255649,2035.7,2032.1,1.23019387]
[1772132662746,8.10191537,2034.4,2032.8,2.42771319]
[1772132662932,14.223749,2034.3,2032.7,3.711]
[1772132663111,0.79252337,2034.0,2032.4,3.711]
[1772132663441,0.79252337,2034.0,2031.4,0.83047569]
[1772132663442,2.54030966,2033.9,2030.6,1.47727738]
[1772132663615,2.42771319,2031.7,2029.9,4.92586572]
[1772132663811,2.42771319,2031.7,2029.8,1.23158776]
[1772132663812,0.79252337,2031.2,2029.8,1.23158776]
[1772132664016,0.79252337,2031.0,2029.2,1.23201261]
[1772132664211,0.19935207,2034.3,2029.2,1.23201261]
[1772132664212,0.79252337,2032.4,2030.0,4.211]
[1772132664430,0.79252337,2032.4,2029.2,2.0624883]
[1772132664431,0.79252337,2032.3,2031.2,4.211]
[1772132664633,4.995306,2032.0,2029.2,0.83047569]
[1772132664840,0.79252337,2031.2,2028.9,1.396]
[1772132665143,6.314258,2031.1,2029.0,0.84846134]
[1772132665310,0.79252337,2031.0,2028.6,7.057992]
[1772132665516,6.335198,2030.5,2028.3,2.06301013]
[1772132665726,2.53649413,2029.8,2028.0,1.23272271]
[1772132665925,2.53649413,2029.8,2027.9,0.83047569]
[1772132665926,9.684486,2029.8,2027.9,0.83047569]
[1772132666122,6.10846,2029.7,2027.9,0.83047569]
[1772132666333,2.47528506,2029.8,2028.1,0.83047569]
[1772132666537,32.47528506,2030.3,2028.0,1.23274161]
[1772132666736,2.47528506,2029.9,2028.0,1.23274161]
[1772132666935,2.47528506,2029.9,2027.6,2.47528506]
[1772132666936,2.47528506,2029.9,2027.8,14.124443]
[1772132667149,2.47528506,2029.5,2027.2,5.607306]
[1772132667344,19.931508,2029.4,2027.1,2.06376462]
[1772132667648,12.560494,2029.0,2027.1,2.06376462]
[1772132667946,18.53236,2030.3,2028.4,2.44808064]
[1772132668248,2.88928661,2030.4,2028.4,2.44808064]
[1772132668249,1.66,2031.0,2029.2,1.23201261]
[1772132668542,1.66,2031.0,2029.1,2.47528506]
[1772132668543,2.45252337,2031.0,2029.1,2.47528506]
[1772132668710,1.662,2031.2,2029.5,2.47528506]
[1772132668916,2.53784,2031.1,2029.5,2.47528506]
[1772132669135,2.309655,2032.1,2030.1,4.93775866]
[1772132669455,2.45352337,2032.2,2030.2,2.49473563]
[1772132669627,12.22920806,2032.1,2030.0,2.46554489]
[1772132669823,2.47528506,2032.1,2030.0,2.46554489]
[1772132670148,0.002,2031.0,2029.3,2.42884183]
[1772132670355,1.23056282,2031.6,2029.5,1.2318305]
[1772132670553,2.42884183,2031.3,2029.3,1.23191576]
[1772132670725,19.352261,2031.2,2029.2,2.06248729]
[1772132670926,1.667,2031.2,2029.0,3.66094516]
[1772132671119,28.298867,2030.8,2028.6,3.66121685]
[1772132671317,6.259048,2030.8,2029.0,2.42884183]
[1772132671719,16.400799,2030.6,2028.6,3.66121685]
[1772132671934,0.002,2031.3,2029.4,2.42884183]
[1772132672148,1.669,2031.2,2029.4,2.42884183]
[1772132672452,1.669,2031.2,2029.8,2.42884183]
[1772132672955,1.669,2031.2,2029.0,67.68670969]
[1772132672956,6.06989,2031.1,2029.0,4.49141585]
[1772132673123,2.42884183,2029.9,2027.7,5.76192849]
[1772132673324,2.42884183,2029.9,2028.4,2.42884183]
[1772132673325,1.668,2029.9,2028.4,2.42884183]
[1772132673527,3.95922,2029.8,2027.8,3.66170503]
[1772132673724,3.95922,2029.8,2027.8,2.42884183]
[1772132674226,1.2317698,2029.6,2027.8,3.66170445]
[1772132674631,1.668,2029.9,2028.2,2.42884183]
[1772132674830,3.84645,2029.8,2027.8,1.23286262]
[1772132675033,13.709409,2029.7,2027.7,4.49221476]
[1772132675245,28.42925137,2029.3,2027.1,2.06373733]
[1772132675548,28.42925137,2029.3,2026.7,4.93401997]
[1772132675549,14.551626,2028.9,2026.9,1.23341062]
[1772132675852,1.957097,2028.7,2026.9,1.23341062]
[1772132676039,1.667,2028.8,2027.7,0.48]
[1772132676245,20.25063026,2028.7,2026.7,1.23353234]
[1772132676545,20.25063026,2028.7,2026.4,4.93476991]
[1772132676546,8.179207,2028.3,2026.5,2.06409839]
[1772132676737,8.179207,2028.3,2026.5,1.2336227]
[1772132676945,23.946698,2028.5,2026.5,2.42884183]
[1772132677124,2.70155,2028.1,2026.5,2.42884183]
[1772132677329,10.227523,2028.1,2026.1,5.30894147]
[1772132677552,6.089636,2028.3,2026.2,2.66649199]
[1772132677753,6.089636,2028.3,2026.1,5.30894147]
[1772132677754,6.089636,2028.3,2026.3,2.66685817]
[1772132677942,6.089636,2028.3,2026.2,7.601708]
[1772132678149,6.089636,2028.3,2026.3,2.66681756]
[1772132678464,8.27838,2028.1,2026.2,1.23383673]
[1772132678663,2.208096,2028.1,2026.3,2.67575306]
[1772132678852,5.060896,2028.1,2026.4,2.67575306]
[1772132679156,1.67,2028.5,2026.9,3.41115693]
[1772132679355,1.67,2028.5,2027.0,2.8672556]
[1772132679530,1.67,2028.5,2027.1,2.68039936]
[1772132679732,1.67,2029.2,2027.3,3.59801317]
[1772132679957,7.052077,2029.1,2027.5,0.18685624]
[1772132680164,3.696781,2029.1,2027.6,2.68039936]
[1772132680457,2.984282,2029.0,2027.7,2.68039936]
[1772132680628,1.23209437,2029.1,2027.6,0.18685624]
[1772132680830,5.682752,2029.0,2027.6,0.18685624]
[1772132681030,5.682752,2029.0,2027.0,5.03606836]
[1772132681031,5.682752,2029.0,2027.2,0.18685624]
[1772132681333,4.92829333,2029.4,2027.2,0.18685624]
[1772132681334,1.2317698,2029.6,2027.4,5.2229246]
[1772132681659,8.848035,2029.1,2027.6,3.14968917]
[1772132681850,4.586341,2029.1,2027.7,2.68639157]
[1772132682049,4.586341,2029.1,2027.8,2.68639157]
[1772132682245,1.23213405,2029.0,2027.9,2.68639157]
[1772132682461,1.2321133,2029.1,2028.0,2.68639157]
[1772132682768,1.669,2029.2,2028.1,2.68639157]
[1772132682931,2.90101596,2029.2,2028.2,2.68639157]
[1772132683135,2.90101596,2029.2,2027.8,0.001]
[1772132683136,4.17643,2029.1,2027.8,0.18785624]
[1772132683349,4.17643,2029.1,2027.9,2.70466333]
[1772132683541,4.17643,2029.1,2028.0,2.70466333]
[1772132683742,4.17643,2029.1,2028.1,2.70466333]
[1772132683955,4.17643,2029.1,2028.2,2.70466333]
[1772132684157,1.669,2029.2,2028.3,2.70466333]
[1772132684378,1.669,2029.2,2028.4,2.70466333]
[1772132684546,2.90101645,2029.2,2028.5,2.70466333]
[1772132684746,2.90101645,2029.2,2028.2,3.14968917]
[1772132684747,7.155128,2029.1,2028.2,3.14968917]
[1772132684953,1.65861108,2029.7,2028.2,3.14968917]
[1772132684954,1.23140577,2030.2,2028.4,3.14968917]
[1772132685284,1.673,2030.0,2029.1,3.14968917]
[1772132685465,1.673,2030.0,2029.2,3.14968917]
[1772132685777,1.673,2030.0,2029.5,3.14968917]
[1772132685945,1.673,2030.0,2029.3,3.14968917]
[1772132686146,1.673,2030.0,2029.4,3.14968917]
[1772132686361,1.671,2030.3,2029.9,3.14968917]
[1772132686557,1.671,2030.3,2029.9,2.16300935]
[1772132686875,1.671,2030.3,2029.7,4.04948849]
[1772132687058,1.671,2030.3,2029.5,4.04948849]
[1772132687375,4.92619193,2030.8,2030.0,5.23502127]
[1772132687376,6.0934777,2030.7,2030.0,5.23502127]
[1772132687677,4.607183,2030.6,2030.3,2.6611745]
[1772132687878,4.607183,2030.6,2029.6,6.96948536]
[1772132688112,5.585435,2030.6,2029.5,1.23182654]
[1772132688291,2.90014661,2030.7,2029.4,1.41870172]
[1772132688583,1.669,2030.7,2029.6,0.18685624]
[1772132688781,3.51891088,2030.6,2029.1,6.96948536]
[1772132689004,2.90010797,2030.7,2028.8,1.62491143]
[1772132689281,1.67,2030.6,2029.2,1.62491143]
[1772132689464,2.753018,2030.5,2029.2,1.62491143]
[1772132689644,2.534084,2030.5,2029.2,1.62491143]
[1772132689847,1.67,2030.6,2029.2,1.62491143]
[1772132690352,1.23122383,2030.5,2029.2,1.62491143]
[1772132690559,3.41115693,2029.9,2028.4,15.35361082]
[1772132690758,30.08192,2029.6,2027.9,6.96948536]
[1772132690953,13.49167,2029.4,2027.6,1.62491143]
[1772132691161,9.389176,2029.4,2027.7,2.85783543]
[1772132691671,9.389176,2029.4,2027.7,1.62491143]
[1772132691900,1.667,2029.5,2027.7,1.62491143]
[1772132691901,6.510062,2029.3,2027.7,1.62491143]
[1772132692092,3.033278,2029.4,2027.8,1.62491143]
[1772132692461,1.2319519,2029.3,2028.0,1.23274161]
[1772132692880,1.2319519,2029.3,2027.9,2.85767881]
[1772132693112,1.2319519,2029.3,2027.9,1.62491143]
[1772132693394,1.2319519,2029.3,2028.0,1.62491143]
[1772132694484,4.92780761,2029.4,2028.1,1.23268083]
[1772132694796,2.318137,2029.3,2028.0,2.85764687]
[1772132695783,2.318137,2029.3,2028.0,1.62491143]
[1772132695991,2.318137,2029.3,2027.6,1.62491143]
[1772132696297,17.322907,2029.1,2027.4,1.62491143]
[1772132696505,6.997045,2028.9,2027.5,1.23304562]
[1772132696806,6.997045,2028.9,2027.4,1.23306142]
[1772132696968,4.92829333,2029.2,2027.4,1.62491143]
[1772132697301,3.601207,2029.1,2027.4,1.62491143]
[1772132698003,2.483945,2029.1,2027.5,1.81176767]
[1772132698178,4.92829333,2029.2,2028.2,0.001]
[1772132698559,10.342851,2029.3,2028.2,0.001]
[1772132698968,2.347115,2029.3,2028.2,0.001]
[1772132699713,2.584,2029.2,2028.2,0.001]
[1772132700019,1.65861108,2029.3,2028.3,0.44195467]
[1772132700182,1.65861108,2029.3,2028.2,0.001]
[1772132700183,7.61683,2029.2,2028.4,0.44195467]
[1772132700382,7.61683,2029.2,2028.2,0.001]
[1772132700612,11.30222,2029.0,2028.2,0.001]
[1772132700799,30.0,2028.8,2028.2,0.001]
[1772132700999,8.352523,2028.6,2027.1,1.12380529]
[1772132701198,8.352523,2028.6,2027.1,2.35706684]
[1772132701592,8.352523,2028.6,2027.1,1.62491143]
[1772132701593,9.3212,2028.6,2027.1,1.62491143]
[1772132701803,9.3212,2028.6,2026.8,1.62491143]
[1772132702012,1.65861108,2028.5,2026.8,1.62491143]
[1772132702196,23.08054908,2028.2,2026.5,1.23361709]
[1772132702406,9.885901,2028.1,2026.5,1.23361709]
[1772132702612,1.23274161,2028.0,2026.5,2.85852852]
[1772132702941,1.652,2027.9,2026.6,1.62491143]
[1772132703793,1.23271735,2028.1,2026.7,1.81176767]
[1772132704000,1.232377,2028.6,2026.9,1.81176767]
[1772132704205,1.232377,2028.6,2026.9,1.62491143]
[1772132704713,1.23249852,2028.4,2027.0,3.04511744]
[1772132705916,1.23249852,2028.4,2027.1,1.62491143]
[1772132706118,6.57940884,2029.1,2027.3,1.81176767]
[1772132706119,7.391552,2028.9,2027.3,1.81176767]
[1772132706318,7.391552,2028.9,2027.0,1.23334977]
[1772132706319,1.65861108,2028.8,2027.0,1.23334977]
[1772132706516,4.64329098,2029.0,2026.8,2.85835065]
[1772132706517,14.32990108,2028.5,2026.8,2.85835065]
[1772132706715,17.814788,2028.7,2027.0,1.23334977]
[1772132706889,15.511269,2028.7,2027.0,1.23334977]
[1772132707423,1.65861108,2028.4,2026.4,7.96079735]
[1772132707623,28.887771,2028.3,2026.5,1.23365408]
[1772132708112,21.677074,2028.2,2026.5,1.23365408]
[1772132708318,20.765596,2028.2,2026.5,1.23365408]
[1772132708490,19.86622,2028.2,2026.5,1.23365408]
[1772132708690,30.0,2028.0,2026.4,1.62491143]
[1772132708890,23.446538,2027.8,2026.2,1.23380941]
[1772132709121,3.26040037,2027.9,2026.0,4.93581265]
[1772132709122,10.981852,2027.6,2026.0,4.93581265]
[1772132709320,9.832811,2027.6,2026.0,4.93581265]
[1772132709508,19.133614,2027.4,2026.0,1.23395853]
[1772132709708,7.079792,2027.4,2026.0,1.23395853]
[1772132709910,7.079792,2027.4,2025.9,2.8588833]
[1772132710106,4.627472,2027.4,2025.9,2.8588833]
[1772132710726,1.23316726,2027.3,2025.9,2.8588833]
[1772132710929,12.610861,2027.2,2025.9,2.8588833]
[1772132711901,11.1279,2027.2,2025.9,2.8588833]
[1772132712105,15.3268242,2027.8,2026.0,1.92197035]
[1772132712300,15.3268242,2027.8,2026.3,2.10882659]
[1772132712301,1.2328632,2027.8,2026.3,2.10882659]
[1772132712518,1.2328632,2027.8,2026.3,1.92197035]
[1772132712918,1.2329848,2027.6,2026.4,1.23371496]
[1772132713434,1.2329848,2027.6,2026.3,6.85683019]
[1772132713435,1.2329848,2027.6,2026.3,3.1557011]
[1772132714119,30.0,2027.5,2026.1,1.23484979]
[1772132714292,25.33805,2027.5,2026.1,1.23484979]
[1772132714743,1.9752266,2027.4,2026.1,0.001]
[1772132714894,1.23328893,2027.1,2025.9,0.001]
[1772132715223,4.788637,2027.0,2025.9,0.001]
[1772132715429,2.241717,2027.0,2025.9,0.001]
[1772132715610,1.23327198,2027.2,2025.9,1.92297035]
[1772132715798,8.34434799,2028.0,2026.6,4.33236661]
[1772132715799,1.23476548,2028.0,2026.6,4.33236661]
[1772132715997,1.642,2028.5,2026.5,2.73940593]
[1772132715998,4.93087872,2028.1,2026.8,2.4234749]
[1772132716301,2.33543008,2027.2,2026.7,1.230704]
[1772132716497,2.33543008,2026.9,2026.3,1.230704]
[1772132716696,2.9192876,2026.8,2026.3,1.230704]
[1772132716923,2.9192876,2026.7,2026.3,1.230704]
[1772132717113,2.9192876,2026.6,2026.3,2.46447854]
[1772132717296,2.9192876,2026.5,2026.3,1.230704]
[1772132717497,1.10472608,2026.6,2026.3,1.23377584]
[1772132717696,4.3789314,2027.0,2026.3,1.23377584]
[1772132717697,3.50314512,2027.0,2026.3,1.23377584]
[1772132717898,3.50314512,2027.4,2026.3,3.15574619]
[1772132718204,1.23304568,2027.5,2026.3,3.15574619]
[1772132718533,5.61196197,2027.6,2026.3,3.15574619]
[1772132718934,7.841573,2027.4,2026.3,1.23377584]
[1772132719224,4.3789314,2027.4,2026.3,1.23377584]
[1772132719444,4.3789314,2027.4,2025.9,1.23495853]
[1772132719599,4.3789314,2027.2,2026.0,6.85763455]
[1772132719806,4.3789314,2027.0,2026.0,1.23395853]
[1772132720122,4.3789314,2027.4,2026.2,5.33312728]
[1772132720320,2.87390621,2027.8,2026.2,5.33312728]
[1772132720520,3.66763,2027.7,2026.3,1.92197035]
[1772132720897,1.2329848,2027.6,2026.4,1.23371496]
[1772132721133,1.2329848,2027.6,2026.3,3.15571371]
[1772132721431,3.443357,2027.5,2026.3,1.23374336]
[1772132721614,3.443357,2027.5,2026.1,2.6218578]
[1772132722013,30.0,2027.4,2026.0,1.23392826]
[1772132722321,19.56757,2027.4,2026.0,1.23392826]
[1772132722516,19.56757,2027.4,2025.9,1.23497425]
[1772132722707,24.285346,2027.3,2025.9,1.23497425]
[1772132722907,10.162454,2027.3,2025.9,1.23497425]
[1772132723145,14.784741,2027.1,2025.9,1.23497425]
[1772132723306,11.89763,2027.1,2025.9,1.23497425]
[1772132723930,1.638,2027.0,2025.9,1.23497425]
[1772132724329,2.34624,2026.9,2025.9,0.001]
[1772132724535,1.638,2027.0,2025.9,0.001]
[1772132724716,2.001724,2026.9,2025.9,0.001]
[1772132725121,1.23347148,2026.8,2025.9,0.001]
[1772132727142,23.494906,2026.7,2025.9,0.001]
[1772132727314,17.033603,2026.7,2025.4,1.23432408]
[1772132727515,16.095268,2026.7,2025.4,1.23432408]
[1772132727818,16.095268,2026.7,2026.1,0.001]
[1772132728019,16.095268,2026.7,2025.4,1.23432408]
[1772132728212,1.9752266,2026.6,2025.1,4.93793901]
[1772132728542,22.325106,2026.8,2025.2,1.92197035]
[1772132728710,5.908283,2026.8,2025.2,1.92197035]
[1772132728914,5.908283,2026.8,2025.6,0.001]
[1772132729224,21.266446,2026.4,2025.6,0.001]
[1772132729420,30.0,2026.2,2025.6,0.001]
[1772132729621,14.004106,2026.0,2025.6,0.001]
[1772132729826,2.93799971,2025.9,2025.6,0.001]
[1772132730014,2.93799971,2025.8,2025.6,0.001]
[1772132730232,2.93799971,2025.7,2025.6,0.001]
[1772132730436,4.56999971,2025.7,2025.0,0.001]
[1772132730616,2.93799971,2025.6,2025.0,0.001]
[1772132730817,2.93799971,2025.5,2025.0,0.001]
[1772132731132,1.632,2025.7,2025.0,0.001]
[1772132731444,2.86614595,2025.7,2025.0,0.001]
[1772132731646,2.86614786,2025.7,2025.0,0.001]
[1772132734120,12.003873,2025.6,2024.8,0.001]
[1772132734320,6.652833,2025.6,2024.8,0.001]
[1772132734548,2.54041,2025.6,2024.8,0.001]
[1772132734725,5.5421576,2026.1,2024.8,0.001]
[1772132734927,17.241614,2025.9,2024.8,0.001]
[1772132735134,19.2168406,2025.9,2024.8,0.001]
[1772132735444,1.23408036,2025.8,2024.8,0.001]
[1772132736351,14.07204,2025.7,2024.8,0.001]
[1772132736521,1.627,2025.6,2024.8,0.001]
[1772132737447,1.23426314,2025.5,2024.8,0.001]
[1772132737636,1.23426314,2025.5,2024.5,0.001]
[1772132738956,3.2084583,2025.5,2024.5,0.001]
[1772132739252,1.23426314,2025.5,2024.5,0.001]
[1772132742025,1.23426314,2025.5,2024.7,0.001]
[1772132742355,1.23626314,2025.5,2024.7,0.001]
[1772132743752,0.002,2025.5,2024.7,0.001]
[1772132743957,0.002,2025.5,2024.8,1.23468984]